bitfinex/quotes_BTCUSD_20260315
["timestamp","ask_amount","ask_price","bid_price","bid_amount"]
[1773548312360,0.0014,71625.0,71614.0,0.13527342]
[1773548313535,0.0014,71625.0,71614.0,0.06981875]
[1773548315904,0.069809,71624.0,71613.0,0.00010699]
[1773548317537,0.069809,71624.0,71613.0,0.06556166]
[1773548318040,0.069809,71624.0,71614.0,0.06981875]
[1773548318246,0.0014,71623.0,71615.0,0.06545467]
[1773548318449,0.0014,71623.0,71614.0,0.06981875]
[1773548318655,0.07002811,71625.0,71614.0,0.06981875]
[1773548318865,0.0014,71623.0,71614.0,0.06981875]
[1773548320452,0.06981095,71622.0,71613.0,0.00010699]
[1773548321970,0.0014,71621.0,71613.0,0.00010699]
[1773548323035,0.0698129,71620.0,71613.0,0.00010699]
[1773548323828,0.0698129,71620.0,71613.0,0.00110699]
[1773548324058,0.0698129,71620.0,71613.0,0.00010699]
[1773548324619,0.0698129,71620.0,71603.0,0.0002]
[1773548324620,0.06047747,71619.0,71596.0,0.07008504]
[1773548324818,0.06047747,71618.0,71596.0,0.07008504]
[1773548325273,0.06047747,71618.0,71596.0,0.06998504]
[1773548325496,0.06047747,71618.0,71605.0,0.0002]
[1773548325919,0.06047747,71618.0,71598.0,0.0002]
[1773548326125,0.06029706,71616.0,71598.0,0.0002]
[1773548326334,0.06029706,71614.0,71598.0,0.0002]
[1773548326552,0.06981582,71618.0,71605.0,0.06545467]
[1773548326553,0.06981504,71618.0,71605.0,0.06545467]
[1773548326755,0.04585366,71618.0,71610.0,0.06545467]
[1773548328514,0.06992153,71619.0,71611.0,0.06545467]
[1773548328515,0.0014,71617.0,71611.0,0.06545467]
[1773548328870,0.00010705,71619.0,71611.0,0.06545467]
[1773548329069,0.0014,71618.0,71611.0,0.06545467]
[1773548330168,0.0014,71618.0,71609.0,0.06982338]
[1773548330668,0.06981582,71617.0,71609.0,0.06982338]
[1773548332694,0.06981582,71617.0,71609.0,0.0002]
[1773548333052,0.06981582,71617.0,71604.0,0.06982828]
[1773548333574,0.06981582,71617.0,71601.0,0.0002]
[1773548333731,0.06289154,71616.0,71601.0,0.0002]
[1773548333931,0.06289154,71616.0,71601.0,0.07003122]
[1773548334130,0.06981582,71617.0,71601.0,0.07003122]
[1773548336240,0.06981582,71617.0,71601.0,0.0002]
[1773548336459,0.06289154,71616.0,71601.0,0.0002]
[1773548337099,0.06289154,71616.0,71601.0,0.07003139]
[1773548339213,0.06981582,71617.0,71602.0,0.05768592]
[1773548339777,0.0014,71616.0,71602.0,0.05768592]
[1773548340216,0.06981582,71617.0,71602.0,0.05768592]
[1773548340466,0.0014,71616.0,71602.0,0.05768592]
[1773548340963,0.06981582,71617.0,71602.0,0.05768592]
[1773548341166,0.0014,71616.0,71602.0,0.05768592]
[1773548341549,0.0014,71615.0,71603.0,0.06982947]
[1773548341951,0.06981582,71617.0,71602.0,0.06982947]
[1773548342126,0.0014,71616.0,71602.0,0.06982947]
[1773548342548,0.0014,71616.0,71603.0,0.05768592]
[1773548344076,0.06981777,71615.0,71604.0,0.0698285]
[1773548344253,0.06981777,71615.0,71605.0,0.05768592]
[1773548344254,0.0014,71614.0,71605.0,0.05768592]
[1773548345589,0.0014,71614.0,71602.0,0.06983034]
[1773548345768,0.0014,71614.0,71601.0,0.07003101]
[1773548345933,0.0014,71614.0,71598.0,0.06983435]
[1773548346135,0.06289154,71611.0,71596.0,0.06998498]
[1773548348072,0.06289154,71611.0,71596.0,0.07018498]
[1773548348278,0.06982265,71610.0,71596.0,0.07018498]
[1773548349936,0.13271419,71610.0,71596.0,0.07018498]
[1773548350135,0.13271419,71610.0,71596.0,0.00034909]
[1773548350136,0.12831209,71610.0,71596.0,0.00034909]
[1773548350298,0.06289154,71607.0,71596.0,0.00034909]
[1773548350496,0.0014,71606.0,71593.0,0.0002]
[1773548350703,0.06289154,71605.0,71593.0,0.0002]
[1773548351808,0.0698246,71608.0,71593.0,0.07003914]
[1773548352017,0.0698246,71608.0,71594.0,0.05768592]
[1773548352217,0.0014,71607.0,71594.0,0.05768592]
[1773548352534,0.06982655,71606.0,71593.0,0.07003914]
[1773548353513,0.06982655,71606.0,71593.0,0.0002]
[1773548354943,0.06289154,71605.0,71593.0,0.0002]
[1773548357879,0.0698285,71604.0,71593.0,0.0002]
[1773548358262,0.13272004,71604.0,71593.0,0.0002]
[1773548360566,0.05848944,71603.0,71593.0,0.0002]
[1773548360735,0.06289154,71602.0,71591.0,0.05253141]
[1773548361206,0.0698285,71604.0,71591.0,0.05253141]
[1773548362294,0.0698285,71604.0,71593.0,0.0002]
[1773548363508,0.12459582,71604.0,71593.0,0.0002]
[1773548363708,0.0698285,71604.0,71593.0,0.0002]
[1773548363925,0.05476732,71603.0,71593.0,0.0002]
[1773548364130,0.06983045,71602.0,71593.0,0.0002]
[1773548364332,0.0014,71601.0,71593.0,0.0002]
[1773548366744,0.12459972,71600.0,71593.0,0.0002]
[1773548366955,0.05476732,71599.0,71591.0,0.05253141]
[1773548368522,0.0014,71598.0,71591.0,0.05253141]
[1773548368722,0.06983045,71602.0,71592.0,0.05766821]
[1773548368957,0.0014,71598.0,71592.0,0.05766821]
[1773548369931,0.0014,71598.0,71593.0,0.0002]
[1773548371264,0.06982752,71605.0,71595.0,0.05766821]
[1773548371676,0.0014,71604.0,71595.0,0.05766821]
[1773548372095,0.06982752,71605.0,71595.0,0.05766821]
[1773548372096,0.0014,71603.0,71595.0,0.05766821]
[1773548372938,0.07016802,71614.0,71595.0,0.05766821]
[1773548373133,0.06982167,71611.0,71595.0,0.05766821]
[1773548373294,0.06982167,71611.0,71597.0,0.05766821]
[1773548373701,0.06982167,71611.0,71596.0,0.0698363]
[1773548375059,0.00034909,71614.0,71601.0,0.05766821]
[1773548375436,0.00034909,71614.0,71603.0,0.05766821]
[1773548375798,0.00174909,71614.0,71603.0,0.05766821]
[1773548376606,0.00034909,71614.0,71603.0,0.05766821]
[1773548377520,0.00034909,71614.0,71604.0,0.0698285]
[1773548377726,0.00034909,71614.0,71604.0,0.12749671]
[1773548378327,0.0005691,71614.0,71603.0,0.04502232]
[1773548378497,0.0005691,71614.0,71604.0,0.0698285]
[1773548379627,0.00022001,71626.0,71605.0,0.02438268]
[1773548379823,0.07002922,71624.0,71610.0,0.05852114]
[1773548380392,0.07002922,71624.0,71609.0,0.02552364]
[1773548381166,0.07002922,71624.0,71610.0,0.05852114]
[1773548381796,0.07002922,71624.0,71611.0,0.06982167]
[1773548383491,0.07002922,71624.0,71608.0,0.06982433]
[1773548383693,0.06981095,71622.0,71607.0,0.0698246]
[1773548384016,0.05476732,71620.0,71607.0,0.0698246]
[1773548384610,0.05476732,71618.0,71607.0,0.0698246]
[1773548386060,0.06981582,71617.0,71605.0,0.00010705]
[1773548386385,0.0014,71616.0,71605.0,0.00010705]
[1773548387401,0.0014,71616.0,71605.0,0.00110705]
[1773548387732,0.0014,71616.0,71605.0,0.00010705]
[1773548388230,0.07121708,71616.0,71605.0,0.00010705]
[1773548389750,0.05476732,71615.0,71605.0,0.00010705]
[1773548390463,0.06981875,71614.0,71605.0,0.00010705]
[1773548391096,0.0014,71613.0,71605.0,0.00010705]
[1773548392643,0.0698207,71612.0,71605.0,0.00010705]
[1773548393924,0.0698207,71612.0,71605.0,0.00030705]
[1773548396958,0.0698207,71612.0,71603.0,0.0698293]
[1773548397158,0.06142779,71611.0,71601.0,0.06983132]
[1773548398314,0.06142779,71611.0,71597.0,0.0002]
[1773548398722,0.06142779,71611.0,71592.0,0.0698402]
[1773548400190,0.06982265,71610.0,71592.0,0.0708402]
[1773548400389,0.09986188,71609.0,71592.0,0.07083998]
[1773548400623,0.06142779,71608.0,71592.0,0.06983998]
[1773548400841,0.06982265,71610.0,71592.0,0.06983998]
[1773548400982,0.06982265,71611.0,71592.0,0.06983998]
[1773548400983,0.04476277,71612.0,71599.0,0.05723728]
[1773548401189,0.06981972,71613.0,71600.0,0.0014]
[1773548401382,0.0712168,71616.0,71601.0,0.04713814]
[1773548401587,0.0712168,71616.0,71601.0,0.04709814]
[1773548401987,0.0014,71616.0,71601.0,0.04709814]
[1773548402194,0.06981623,71617.0,71601.0,0.04709814]
[1773548402393,0.0014,71617.0,71602.0,0.06983045]
[1773548404018,0.0014,71617.0,71602.0,0.07083045]
[1773548404185,0.0014,71617.0,71602.0,0.06983045]
[1773548404537,0.0698168,71616.0,71602.0,0.07083045]
[1773548405767,0.0698168,71616.0,71602.0,0.06983045]
[1773548406078,0.0698168,71616.0,71602.0,0.07083045]
[1773548406279,0.0698168,71616.0,71602.0,0.06983045]
[1773548407203,0.0698168,71616.0,71602.0,0.07083045]
[1773548407803,0.0698168,71616.0,71602.0,0.07093865]
[1773548410904,0.0014,71616.0,71602.0,0.07113865]
[1773548411784,0.06981582,71618.0,71602.0,0.07113865]
[1773548411989,0.0014,71617.0,71602.0,0.07113865]
[1773548412432,0.00034909,71614.0,71602.0,0.07013865]
[1773548412806,0.06981972,71613.0,71602.0,0.07113865]
[1773548413001,0.06981972,71613.0,71602.0,0.07013865]
[1773548413308,0.06981972,71613.0,71602.0,0.07113865]
[1773548413485,0.06981972,71613.0,71602.0,0.07013865]
[1773548413893,0.06981972,71613.0,71602.0,0.07113865]
[1773548414782,0.06142779,71612.0,71602.0,0.07113865]
[1773548415079,0.06982167,71611.0,71602.0,0.07013865]
[1773548415279,0.06142779,71610.0,71602.0,0.07013865]
[1773548415588,0.06142779,71610.0,71602.0,0.07113865]
[1773548415730,0.06142779,71610.0,71602.0,0.07013865]
[1773548417047,0.06142779,71610.0,71602.0,0.0701384]
[1773548417225,0.06982362,71609.0,71602.0,0.0701384]
[1773548417444,0.06982362,71609.0,71600.0,0.00010465]
[1773548417445,0.06142779,71608.0,71600.0,0.00010465]
[1773548417598,0.06142779,71608.0,71601.0,0.06983142]
[1773548419020,0.06142779,71608.0,71601.0,0.07003142]
[1773548419950,0.13125241,71608.0,71601.0,0.07003142]
[1773548421411,0.06142779,71608.0,71601.0,0.07003142]
[1773548422501,0.13125304,71608.0,71601.0,0.07003142]
[1773548422713,0.06142779,71608.0,71601.0,0.07003142]
[1773548423462,0.06982532,71608.0,71601.0,0.07003142]
[1773548423663,0.0014,71609.0,71601.0,0.07003142]
[1773548423868,0.06102924,71609.0,71601.0,0.07003142]
[1773548427392,0.13085328,71609.0,71601.0,0.07003142]
[1773548427602,0.13085328,71609.0,71601.0,0.0002]
[1773548427603,0.05962924,71608.0,71601.0,0.0002]
[1773548428009,0.06982557,71607.0,71601.0,0.0002]
[1773548431619,0.12945445,71608.0,71601.0,0.07003092]
[1773548432165,0.07144363,71609.0,71601.0,0.07003092]
[1773548432364,0.0014,71609.0,71601.0,0.07003092]
[1773548434619,0.06981759,71616.0,71601.0,0.07003092]
[1773548434776,0.06981759,71616.0,71602.0,0.0014]
[1773548436098,0.07121759,71616.0,71602.0,0.0014]
[1773548436594,0.07121759,71616.0,71603.0,0.06982947]
[1773548438511,0.0714376,71616.0,71603.0,0.06982947]
[1773548439416,0.0714376,71616.0,71603.0,0.07082947]
[1773548442038,0.0714376,71616.0,71603.0,0.06982947]
[1773548446531,0.0714376,71616.0,71602.0,0.0014]
[1773548446859,0.13106684,71616.0,71603.0,0.06982947]
[1773548448571,0.0714376,71616.0,71603.0,0.06982947]
[1773548448797,0.0714376,71616.0,71604.0,0.05987903]
[1773548449172,0.0014,71615.0,71604.0,0.05987903]
[1773548449549,0.00162001,71616.0,71604.0,0.05987903]
[1773548451385,0.00162001,71616.0,71605.0,0.12551171]
[1773548452152,0.00162001,71616.0,71605.0,0.12553232]
[1773548452353,0.00162001,71616.0,71605.0,0.06982752]
[1773548452680,0.00162001,71616.0,71606.0,0.0557048]
[1773548453085,0.00022001,71616.0,71606.0,0.0557048]
[1773548454201,0.00022001,71616.0,71607.0,0.06982557]
[1773548454399,0.00022001,71616.0,71607.0,0.12553037]
[1773548457909,0.00022001,71616.0,71608.0,0.0557048]
[1773548464753,0.00022001,71625.0,71610.0,0.0557048]
[1773548464928,0.00022001,71625.0,71615.0,0.0557048]
[1773548465277,0.00022001,71632.0,71615.0,0.0557048]
[1773548465278,0.00022001,71635.0,71615.0,0.0557048]
[1773548465410,0.00022001,71635.0,71626.0,0.0557048]
[1773548465757,0.00022001,71635.0,71626.0,0.05555586]
[1773548466248,0.00022001,71635.0,71625.0,0.05849427]
[1773548466599,0.00027485,71635.0,71625.0,0.05849427]
[1773548466906,0.00027485,71635.0,71626.0,0.06980705]
[1773548467444,0.0014,71640.0,71627.0,0.0557048]
[1773548467609,0.0003151,71637.0,71627.0,0.05575964]
[1773548468820,0.0003151,71637.0,71629.0,0.0557048]
[1773548469024,0.0003151,71637.0,71630.0,0.0014]
[1773548470127,0.00022001,71635.0,71630.0,0.0014]
[1773548470942,0.00022001,71635.0,71631.0,0.06980218]
[1773548472201,0.00022001,71635.0,71631.0,0.07080218]
[1773548474200,0.00022001,71635.0,71628.0,0.07120416]
[1773548474384,0.00022001,71635.0,71629.0,0.06980315]
[1773548475103,0.00022001,71635.0,71631.0,0.001]
[1773548475281,0.00022001,71635.0,71629.0,0.06980315]
[1773548476115,0.00022001,71635.0,71627.0,5.484e-05]
[1773548482453,0.00022001,71635.0,71627.0,0.05609127]
[1773548483888,0.00022001,71635.0,71615.0,0.06981777]
[1773548483889,0.05650842,71632.0,71615.0,0.06981777]
[1773548484088,0.05650842,71630.0,71615.0,0.06981777]
[1773548484293,0.05849427,71630.0,71614.0,0.00034901]
[1773548484467,0.05650842,71627.0,71609.0,0.06982301]
[1773548485271,0.05650842,71627.0,71608.0,0.0002]
[1773548485448,0.05650842,71627.0,71608.0,0.07002429]
[1773548486693,0.06980705,71626.0,71608.0,0.07002429]
[1773548486914,0.05790842,71625.0,71608.0,0.07002429]
[1773548487832,0.05790842,71625.0,71608.0,0.0002]
[1773548488195,0.0014,71624.0,71605.0,0.0014]
[1773548488396,0.05650842,71623.0,71605.0,0.07122686]
[1773548490228,0.05650842,71621.0,71608.0,0.07002425]
[1773548491044,0.05790842,71620.0,71608.0,0.07002425]
[1773548492335,0.06998592,71628.0,71611.0,0.05603643]
[1773548492532,0.00165473,71628.0,71618.0,0.11451883]
[1773548492735,0.06980049,71633.0,71619.0,0.05603643]
[1773548492886,0.0014,71632.0,71619.0,0.05611116]
[1773548493776,0.0014,71632.0,71619.0,0.05711116]
[1773548494112,0.06980049,71633.0,71620.0,0.0698129]
[1773548494113,0.07120049,71633.0,71620.0,0.0698129]
[1773548494312,0.07120049,71633.0,71621.0,0.05603643]
[1773548494634,0.00022001,71635.0,71621.0,0.05603643]
[1773548494818,0.00034901,71631.0,71621.0,0.05603643]
[1773548495160,0.00022001,71635.0,71621.0,0.05603643]
[1773548495310,0.06979252,71641.0,71625.0,0.0584824]
[1773548495509,0.0014,71640.0,71630.0,0.0584824]
[1773548495710,0.0014,71640.0,71629.0,0.05603643]
[1773548496692,0.06979438,71639.0,71630.0,0.06980315]
[1773548496852,0.00022001,71635.0,71630.0,0.06980315]
[1773548497768,0.00022001,71635.0,71631.0,0.05603643]
[1773548497970,0.00022001,71635.0,71630.0,0.06980315]
[1773548500911,0.07001244,71643.0,71631.0,0.05603643]
[1773548501086,0.0014,71641.0,71631.0,0.05603643]
[1773548501485,0.0014,71641.0,71633.0,0.05603643]
[1773548501682,0.0014,71641.0,71633.0,0.05588751]
[1773548502212,0.0014,71642.0,71633.0,0.05588751]
[1773548502403,0.0014,71642.0,71632.0,0.0698012]
[1773548502772,0.06979243,71643.0,71632.0,0.0698012]
[1773548503112,0.06979048,71644.0,71632.0,0.12583763]
[1773548503482,0.06978951,71646.0,71633.0,0.0014]
[1773548503709,0.00022001,71641.0,71633.0,0.0014]
[1773548503916,0.00022001,71641.0,71633.0,0.05743643]
[1773548504133,0.06978561,71648.0,71633.0,0.05743643]
[1773548505461,0.06978561,71648.0,71634.0,0.06979925]
[1773548505640,0.06978561,71648.0,71635.0,0.05603643]
[1773548506802,0.00022001,71650.0,71638.0,0.0584824]
[1773548507001,0.00022001,71650.0,71639.0,0.0014]
[1773548507227,0.070004,71650.0,71639.0,0.05743643]
[1773548507443,0.07000388,71650.0,71640.0,0.06979341]
[1773548507645,0.00022001,71650.0,71640.0,0.12582984]
[1773548510792,0.07000371,71650.0,71640.0,0.12582984]
[1773548511196,0.00022001,71650.0,71640.0,0.12582984]
[1773548511394,0.00022001,71650.0,71641.0,0.05539314]
[1773548511605,0.07000417,71650.0,71642.0,0.06979146]
[1773548512557,0.07011125,71650.0,71642.0,0.06979146]
[1773548512735,0.00032709,71650.0,71642.0,0.06979146]
[1773548513990,0.07011118,71650.0,71641.0,0.06979146]
[1773548520148,0.07011118,71650.0,71642.0,0.07119116]
[1773548520352,0.07011118,71650.0,71632.0,0.07000023]
[1773548520353,0.05497144,71649.0,71632.0,0.07000023]
[1773548520558,0.05497144,71649.0,71633.0,0.00124892]
[1773548520760,0.05497144,71649.0,71634.0,0.0014]
[1773548521358,0.05497144,71649.0,71635.0,0.0014]
[1773548522366,0.12475705,71648.0,71636.0,0.0697973]
[1773548523645,0.12475705,71648.0,71637.0,0.0014]
[1773548524040,0.12475705,71648.0,71636.0,0.0697973]
[1773548524245,0.12475705,71648.0,71640.0,0.0002]
[1773548525045,0.06978561,71648.0,71632.0,0.0002]
[1773548525264,0.05497144,71647.0,71633.0,0.0014]
[1773548525467,0.05497144,71647.0,71634.0,0.0014]
[1773548525672,0.05497144,71647.0,71635.0,0.0014]
[1773548526076,0.06978561,71648.0,71635.0,0.0014]
[1773548526277,0.0405009,71648.0,71635.0,0.07119793]
[1773548526903,0.04016467,71654.0,71635.0,0.07119793]
[1773548527115,0.04016467,71654.0,71635.0,0.07130501]
[1773548527553,0.04016467,71654.0,71635.0,0.00010708]
[1773548527758,0.03239467,71654.0,71636.0,0.0014]
[1773548527975,0.03239467,71654.0,71635.0,0.00010708]
[1773548528237,0.03239467,71654.0,71636.0,0.0014]
[1773548528411,0.03434714,71652.0,71636.0,0.0014]
[1773548530250,0.06978269,71651.0,71636.0,0.0014]
[1773548530448,0.03371762,71650.0,71636.0,0.0014]
[1773548532091,0.03371762,71650.0,71635.0,0.00010708]
[1773548532092,0.03371762,71650.0,71637.0,0.0014]
[1773548532493,0.06978464,71649.0,71637.0,0.0014]
[1773548533296,0.06978464,71649.0,71635.0,0.00010708]
[1773548533465,0.06978464,71649.0,71638.0,0.0014]
[1773548535494,0.06978464,71649.0,71635.0,0.00010708]
[1773548535699,0.0323104,71648.0,71639.0,0.0014]
[1773548536248,0.0323104,71648.0,71635.0,0.00010708]
[1773548536493,0.0323104,71648.0,71638.0,0.0014]
[1773548536983,0.0323104,71648.0,71630.0,0.0014]
[1773548537783,0.06978659,71647.0,71630.0,0.0014]
[1773548538014,0.03027803,71646.0,71628.0,0.06695375]
[1773548538218,0.03027803,71646.0,71634.0,0.0002]
[1773548539248,0.03027803,71646.0,71626.0,0.12621341]
[1773548539462,0.03027803,71646.0,71626.0,0.0002]
[1773548539614,0.08855668,71640.0,71627.0,0.0014]
[1773548539814,0.06979438,71639.0,71635.0,0.0287]
[1773548540016,0.06979438,71639.0,71635.0,0.0072]
[1773548540438,0.06979438,71639.0,71635.0,0.0066]
[1773548541840,0.06979438,71641.0,71635.0,0.0066]
[1773548543410,0.06979438,71641.0,71626.0,0.0002]
[1773548543577,0.06979438,71641.0,71632.0,0.0014]
[1773548543780,0.06979438,71641.0,71626.0,0.0002]
[1773548543952,0.06979438,71641.0,71632.0,0.0014]
[1773548545656,0.02872003,71640.0,71627.0,0.0014]
[1773548545863,0.12307906,71639.0,71627.0,0.0014]
[1773548546031,0.06979536,71638.0,71627.0,0.0014]
[1773548546476,0.06979536,71638.0,71628.0,0.0014]
[1773548546684,0.06979536,71638.0,71628.0,0.0013]
[1773548547102,0.02848818,71637.0,71622.0,0.0014]
[1773548547313,0.02848818,71637.0,71620.0,0.0001719]
[1773548547314,0.08697058,71632.0,71620.0,0.0001719]
[1773548547606,0.0584824,71632.0,71611.0,0.07002165]
[1773548547809,0.02826065,71631.0,71618.0,0.0014]
[1773548547956,0.06980315,71630.0,71616.0,0.0014]
[1773548548157,0.02826065,71629.0,71616.0,0.0014]
[1773548550011,0.0698051,71628.0,71611.0,0.07002148]
[1773548550212,0.0698051,71628.0,71616.0,0.0014]
[1773548550719,0.0698051,71628.0,71617.0,0.05253865]
[1773548553611,0.0698051,71628.0,71616.0,0.0014]
[1773548554240,0.0698051,71628.0,71616.0,0.0016]
[1773548555808,0.0698051,71628.0,71610.0,0.0001719]
[1773548555809,0.02652257,71625.0,71610.0,0.0001719]
[1773548556009,0.02652257,71625.0,71600.0,0.0002]
[1773548556010,0.05848131,71621.0,71601.0,0.05253865]
[1773548556215,0.0698129,71620.0,71602.0,0.0014]
[1773548556468,0.0698129,71620.0,71601.0,0.05253865]
[1773548556879,0.02630733,71619.0,71602.0,0.0014]
[1773548557703,0.02630733,71619.0,71601.0,0.05261338]
[1773548558245,0.06981485,71618.0,71602.0,0.0014]
[1773548558485,0.06981485,71618.0,71601.0,0.05261338]
[1773548559051,0.06981485,71618.0,71601.0,0.05401338]
[1773548559209,0.09571904,71618.0,71601.0,0.00147473]
[1773548559392,0.06981485,71618.0,71601.0,7.473e-05]
[1773548559596,0.0843855,71611.0,71596.0,0.00034909]
[1773548559844,0.0014,71610.0,71596.0,0.00045374]
[1773548560341,0.06982362,71609.0,71596.0,0.00045374]
[1773548560544,0.06982362,71609.0,71601.0,5e-05]
[1773548560894,0.06982362,71609.0,71597.0,0.05253865]
[1773548561751,0.06982362,71609.0,71596.0,5.374e-05]
[1773548562960,0.04939231,71608.0,71593.0,0.0014]
[1773548564003,0.06982362,71611.0,71594.0,0.05253865]
[1773548564144,0.06982362,71609.0,71594.0,0.05253865]
[1773548564335,0.0014,71610.0,71596.0,0.05253865]
[1773548564744,0.00010695,71611.0,71596.0,0.05253865]
[1773548564942,0.0014,71610.0,71596.0,0.05253865]
[1773548565783,0.00010695,71611.0,71596.0,0.05253865]
[1773548567792,0.06992862,71611.0,71596.0,0.07003621]
[1773548567993,0.06992862,71611.0,71597.0,0.05253865]
[1773548571424,0.06992862,71611.0,71599.0,0.04927797]
[1773548572542,0.06992862,71611.0,71599.0,0.05067797]
[1773548572724,0.06992862,71611.0,71599.0,0.0014]
[1773548574442,0.06992862,71611.0,71598.0,0.06983435]
[1773548574443,0.05848131,71609.0,71561.0,0.00034926]
[1773548574645,0.05176159,71579.0,71564.0,0.0014]
[1773548575088,0.05176159,71579.0,71565.0,0.0014]
[1773548575867,0.05176159,71579.0,71565.0,0.0017568]
[1773548576067,0.12161545,71578.0,71565.0,0.0017568]
[1773548576365,0.12184745,71578.0,71565.0,0.0017568]
[1773548576579,0.07008586,71578.0,71565.0,0.0017568]
[1773548576921,0.03445138,71589.0,71565.0,0.0017568]
[1773548576922,0.15918495,71588.0,71568.0,0.05848131]
[1773548577072,0.21110446,71588.0,71566.0,0.00322694]
[1773548577273,0.05191951,71587.0,71566.0,0.00322694]
[1773548578342,0.14154735,71586.0,71568.0,0.001]
[1773548579196,0.14154735,71586.0,71566.0,0.07309217]
[1773548580463,0.14154735,71586.0,71567.0,0.00488911]
[1773548581717,0.14154735,71586.0,71567.0,0.00508911]
[1773548581924,0.05191951,71585.0,71567.0,0.0002]
[1773548582157,0.05191951,71585.0,71568.0,0.0014]
[1773548582314,0.06984801,71584.0,71568.0,0.0014]
[1773548582522,0.05191951,71583.0,71568.0,0.0014]
[1773548583076,0.05191951,71583.0,71565.0,0.0003568]
[1773548583276,0.05191951,71583.0,71569.0,0.0014]
[1773548584460,0.05191951,71581.0,71569.0,0.0014]
[1773548584682,0.05191951,71579.0,71565.0,0.0003568]
[1773548585011,0.05191951,71579.0,71561.0,0.00034926]
[1773548585012,0.05176159,71577.0,71564.0,0.0014]
[1773548585147,0.05211817,71577.0,71564.0,0.0014]
[1773548585353,0.05211817,71577.0,71561.0,0.00174926]
[1773548585819,0.05211817,71577.0,71562.0,0.0014]
[1773548585969,0.05211817,71577.0,71563.0,0.0014]
[1773548586308,0.05211817,71577.0,71564.0,0.0014]
[1773548586588,0.05176159,71575.0,71565.0,0.0014]
[1773548586792,0.05176159,71575.0,71561.0,0.00034926]
[1773548590009,0.06985776,71574.0,71561.0,0.00054926]
[1773548590322,0.05176159,71573.0,71561.0,0.00054926]
[1773548590504,0.05176159,71573.0,71562.0,0.0014]
[1773548590911,0.05176159,71573.0,71561.0,0.00054926]
[1773548591078,0.05176159,71573.0,71562.0,0.0014]
[1773548592330,0.06985972,71572.0,71562.0,0.0014]
[1773548594666,0.06985972,71575.0,71562.0,0.0014]
[1773548597068,0.06985972,71575.0,71562.0,0.0016]
[1773548600141,0.12162131,71575.0,71562.0,0.0016]
[1773548604546,0.12162131,71575.0,71552.0,0.0002]
[1773548604547,0.05848131,71572.0,71552.0,0.0002]
[1773548604738,0.05388555,71571.0,71557.0,0.0012]
[1773548605202,0.06986167,71570.0,71557.0,0.0012]
[1773548605411,0.05388555,71569.0,71557.0,0.0012]
[1773548606280,0.05388555,71569.0,71562.0,0.0002]
[1773548606747,0.05388555,71569.0,71554.0,0.0002]
[1773548606924,0.05388555,71569.0,71555.0,0.0014]
[1773548607130,0.05388555,71569.0,71554.0,0.0002]
[1773548607346,0.05388555,71567.0,71556.0,0.0014]
[1773548609264,0.06986557,71566.0,71556.0,0.0014]
[1773548609474,0.12375112,71566.0,71556.0,0.0014]
[1773548610076,0.06986557,71566.0,71556.0,0.0014]
[1773548610228,0.05388555,71565.0,71556.0,0.0014]
[1773548610816,0.05388555,71565.0,71549.0,0.0001675]
[1773548611050,0.05388555,71565.0,71549.0,0.0015675]
[1773548611247,0.06986753,71564.0,71549.0,0.0001675]
[1773548611421,0.06986753,71564.0,71550.0,0.05848131]
[1773548611622,0.06986753,71565.0,71551.0,0.0014]
[1773548611840,0.06986753,71565.0,71551.0,0.10066833]
[1773548613775,0.06986753,71565.0,71556.0,0.0002]
[1773548615332,0.12375308,71565.0,71556.0,0.0002]
[1773548616749,0.12375308,71565.0,71556.0,0.0016]
[1773548616966,0.12375308,71565.0,71556.0,0.0002]
[1773548617168,0.12375308,71565.0,71556.0,0.0016]
[1773548617465,0.12375308,71565.0,71556.0,0.0002]
[1773548617683,0.12375308,71565.0,71556.0,0.0016]
[1773548617970,0.12375308,71565.0,71556.0,0.0002]
[1773548618268,0.12375308,71565.0,71556.0,0.0016]
[1773548618504,0.12375308,71565.0,71556.0,0.0002]
[1773548618628,0.12375308,71565.0,71556.0,0.0016]
[1773548619233,0.05388555,71564.0,71556.0,0.0016]
[1773548621364,0.0698685,71563.0,71556.0,0.0002]
[1773548622793,0.05388555,71562.0,71549.0,0.0001675]
[1773548622997,0.05388555,71562.0,71550.0,0.0014]
[1773548623203,0.05388555,71562.0,71551.0,0.0014]
[1773548623652,0.05388555,71560.0,71543.0,0.00034935]
[1773548623825,0.12844159,71561.0,71543.0,0.00034935]
[1773548624022,0.05388555,71560.0,71543.0,0.00034935]
[1773548624224,0.05528555,71559.0,71543.0,0.00034935]
[1773548624693,0.05528555,71559.0,71528.0,0.0002512]
[1773548624894,0.05388555,71558.0,71530.0,0.05857113]
[1773548625034,0.05388555,71558.0,71530.0,0.06764017]
[1773548625235,0.05388555,71558.0,71531.0,0.0014]
[1773548625848,0.05388555,71556.0,71531.0,0.0014]
[1773548626157,0.05388555,71556.0,71531.0,0.0017308]
[1773548626358,0.05388555,71556.0,71531.0,0.07163037]
[1773548628394,0.06987631,71555.0,71531.0,0.07163037]
[1773548628629,0.05388555,71554.0,71531.0,0.07163037]
[1773548628831,0.05388555,71552.0,71531.0,0.07163037]
[1773548629299,0.05388555,71552.0,71531.0,0.0019308]
[1773548629473,0.05388555,71552.0,71531.0,0.00199558]
[1773548630100,0.05388555,71552.0,71531.0,0.0718952]
[1773548630279,0.05388555,71552.0,71532.0,0.0014]
[1773548630894,0.05234901,71550.0,71532.0,0.0014]
[1773548631082,0.05234901,71550.0,71532.0,0.0017308]
[1773548632925,0.06988217,71549.0,71532.0,0.0003308]
[1773548633122,0.0539662,71548.0,71533.0,0.0014]
[1773548634294,0.0539662,71548.0,71532.0,0.0003308]
[1773548635128,0.0539662,71546.0,71532.0,0.0003308]
[1773548636256,0.0539662,71546.0,71532.0,0.07022934]
[1773548637239,0.06988608,71545.0,71532.0,0.0003308]
[1773548637443,0.0539662,71544.0,71532.0,0.0003308]
[1773548637650,0.06987855,71553.0,71532.0,0.07022922]
[1773548637849,0.00162001,71565.0,71541.0,0.00870273]
[1773548638044,0.00162001,71565.0,71532.0,0.07022922]
[1773548638045,0.07008754,71565.0,71550.0,0.05857113]
[1773548638274,0.07008754,71565.0,71551.0,0.0014]
[1773548639827,0.00022001,71552.0,71551.0,0.0014]
[1773548640277,0.00022001,71552.0,71548.0,0.06988239]
[1773548640454,0.00022001,71552.0,71551.0,0.0014]
[1773548641830,0.07009154,71560.0,71551.0,0.0014]
[1773548642047,0.07005154,71560.0,71551.0,0.0014]
[1773548643212,0.0539662,71559.0,71545.0,0.06988549]
[1773548643414,0.0539662,71559.0,71521.0,0.09926833]
[1773548643415,0.0539662,71559.0,71538.0,0.06989257]
[1773548643788,0.0539662,71559.0,71539.0,0.0014]
[1773548644378,0.0539662,71559.0,71540.0,0.0014]
[1773548644606,0.0539662,71559.0,71541.0,0.0014]